[Event "Deloitte NK 2021 Vrouwen"]
[Site "Hoogeveen, Netherlands"]
[Date "2021.10.20"]
[Round "4.4"]
[White "Ratsma, Rosa"]
[Black "Kazarian, Anna-Maja"]
[Result "1/2-1/2"]
[TimeControl "90min/40moves + 30min + 30sec/move"]
[WhiteElo "2306"]
[BlackElo "2125"]

1. e4 {[%clk 01:30:57]} {[%emt 00:00:02]} c5 {[%clk 01:30:55]} {[%emt
00:00:06]} 2. Nf3 {[%clk 01:31:20]} {[%emt 00:00:07]} e6 {[%clk 01:31:17]}
{[%emt 00:00:08]} 3. d4 {[%clk 01:31:42]} {[%emt 00:00:08]} cxd4 {[%clk
01:31:44]} {[%emt 00:00:03]} 4. Nxd4 {[%clk 01:32:05]} {[%emt 00:00:07]} Nf6
{[%clk 01:32:07]} {[%emt 00:00:07]} 5. Nc3 {[%clk 01:32:27]} {[%emt 00:00:08]}
Nc6 {[%clk 01:32:33]} {[%emt 00:00:04]} 6. Bf4 {[%clk 01:32:35]} {[%emt
00:00:22]} Bc5 {[%clk 01:14:16]} {[%emt 00:18:47]} 7. Ndb5 {[%clk 01:30:03]}
{[%emt 00:03:02]} O-O {[%clk 01:14:27]} {[%emt 00:00:19]} 8. Bc7 {[%clk
01:25:22]} {[%emt 00:05:11]} Qe7 {[%clk 01:14:42]} {[%emt 00:00:15]} 9. Bd6
{[%clk 01:25:28]} {[%emt 00:00:24]} Bxd6 {[%clk 01:15:03]} {[%emt 00:00:09]} 10.
Qxd6 {[%clk 01:25:35]} {[%emt 00:00:23]} Qd8 {[%clk 01:13:22]} {[%emt
00:02:11]} 11. Qd2 {[%clk 01:16:34]} {[%emt 00:09:31]} a6 {[%clk 00:55:28]}
{[%emt 00:18:24]} 12. Nd6 {[%clk 01:16:10]} {[%emt 00:00:53]} b5 {[%clk
00:55:41]} {[%emt 00:00:18]} 13. a3 {[%clk 01:14:01]} {[%emt 00:02:39]} Qc7
{[%clk 00:47:03]} {[%emt 00:09:08]} 14. Be2 {[%clk 01:10:51]} {[%emt 00:03:39]}
Bb7 {[%clk 00:32:40]} {[%emt 00:14:54]} 15. O-O {[%clk 01:07:24]} {[%emt
00:03:56]} Ne8 {[%clk 00:23:36]} {[%emt 00:09:35]} 16. Nxb7 {[%clk 01:04:11]}
{[%emt 00:03:43]} Qxb7 {[%clk 00:24:00]} {[%emt 00:00:05]} 17. f4 {[%clk
01:01:29]} {[%emt 00:03:13]} d6 {[%clk 00:16:38]} {[%emt 00:07:52]} 18. Kh1
{[%clk 00:57:45]} {[%emt 00:04:13]} Rd8 {[%clk 00:15:03]} {[%emt 00:02:06]} 19.
Rad1 {[%clk 00:53:12]} {[%emt 00:05:03]} Nf6 {[%clk 00:13:19]} {[%emt
00:02:14]} 20. Bd3 {[%clk 00:46:16]} {[%emt 00:07:25]} Qb6 {[%clk 00:09:24]}
{[%emt 00:04:26]} 21. Qe1 {[%clk 00:39:29]} {[%emt 00:07:16]} Qc5 {[%clk
00:02:53]} {[%emt 00:07:01]} 22. Qg3 {[%clk 00:33:21]} {[%emt 00:06:38]} e5
{[%clk 00:01:53]} {[%emt 00:01:30]} 23. Nd5 {[%clk 00:26:33]} {[%emt 00:07:18]}
Nh5 {[%clk 00:01:21]} {[%emt 00:01:03]} 24. Qh4 {[%clk 00:09:00]} {[%emt
00:18:02]} Nxf4 {[%clk 00:01:42]} {[%emt 00:00:09]} 25. b4 {[%clk 00:09:01]}
{[%emt 00:00:30]} Qa7 {[%clk 00:01:30]} {[%emt 00:00:41]} 26. Nxf4 {[%clk
00:05:13]} {[%emt 00:04:18]} exf4 {[%clk 00:01:58]} {[%emt 00:00:02]} 27. e5
{[%clk 00:04:56]} {[%emt 00:00:48]} g6 {[%clk 00:02:00]} {[%emt 00:00:27]} 28.
exd6 {[%clk 00:05:06]} {[%emt 00:00:20]} Rxd6 {[%clk 00:02:10]} {[%emt
00:00:21]} 29. Qxf4 {[%clk 00:05:24]} {[%emt 00:00:12]} Rfd8 {[%clk 00:00:51]}
{[%emt 00:01:48]} 30. Rde1 {[%clk 00:02:28]} {[%emt 00:03:26]} Nd4 {[%clk
00:00:36]} {[%emt 00:00:45]} 31. Qh6 {[%clk 00:01:57]} {[%emt 00:01:01]} Ne6
{[%clk 00:00:43]} {[%emt 00:00:23]} 32. Rf3 {[%clk 00:01:30]} {[%emt 00:00:56]}
Qd4 {[%clk 00:00:41]} {[%emt 00:00:33]} 33. Rfe3 {[%clk 00:01:16]} {[%emt
00:00:44]} Qf6 {[%clk 00:00:39]} {[%emt 00:00:32]} 34. Rf3 {[%clk 00:00:45]}
{[%emt 00:01:02]} Qd4 {[%clk 00:00:34]} {[%emt 00:00:34]} 35. Ref1 {[%clk
00:01:00]} {[%emt 00:00:14]} R6d7 {[%clk 00:00:47]} {[%emt 00:00:18]} 36. Rf6
{[%clk 00:00:47]} {[%emt 00:00:43]} Qe5 {[%clk 00:00:54]} {[%emt 00:00:23]} 37.
Qh3 {[%clk 00:00:48]} {[%emt 00:00:29]} Kg7 {[%clk 00:00:48]} {[%emt 00:00:36]}
38. Qf3 {[%clk 00:00:40]} {[%emt 00:00:38]} Ng5 {[%clk 00:00:46]} {[%emt
00:00:32]} 39. Qf2 {[%clk 00:00:47]} {[%emt 00:00:23]} Rf8 {[%clk 00:00:33]}
{[%emt 00:00:43]} 40. Rxa6 {[%clk 00:00:43]} {[%emt 00:00:33]} Ne6 {[%clk
00:00:37]} {[%emt 00:00:26]} 41. h3 {[%clk 00:26:42]} {[%emt 00:04:31]} Rb8
{[%clk 00:27:25]} {[%emt 00:03:43]} 42. Re1 {[%clk 00:23:25]} {[%emt 00:03:47]}
Qg5 {[%clk 00:25:22]} {[%emt 00:02:33]} 43. Rf1 {[%clk 00:20:47]} {[%emt
00:03:08]} h5 {[%clk 00:23:06]} {[%emt 00:02:45]} 44. Ra5 {[%clk 00:19:42]}
{[%emt 00:01:36]} Rbb7 {[%clk 00:19:07]} {[%emt 00:04:29]} 45. a4 {[%clk
00:19:02]} {[%emt 00:01:10]} Rd5 {[%clk 00:16:16]} {[%emt 00:03:21]} 46. axb5
{[%clk 00:18:03]} {[%emt 00:01:29]} Rd4 {[%clk 00:13:41]} {[%emt 00:03:06]} 47.
b6 {[%clk 00:13:43]} {[%emt 00:04:49]} Qe7 {[%clk 00:12:58]} {[%emt 00:01:12]}
48. Re5 {[%clk 00:11:18]} {[%emt 00:02:56]} Rxb4 {[%clk 00:12:21]} {[%emt
00:01:07]} 49. Bxg6 {[%clk 00:08:17]} {[%emt 00:03:30]} fxg6 {[%clk 00:05:49]}
{[%emt 00:07:02]} 50. Rxe6 {[%clk 00:08:35]} {[%emt 00:00:12]} Qxe6 {[%clk
00:06:15]} {[%emt 00:00:04]} 51. Qf8+ {[%clk 00:08:58]} {[%emt 00:00:08]} Kh7
{[%clk 00:06:42]} {[%emt 00:00:03]} 52. Qxb4 {[%clk 00:09:14]} {[%emt
00:00:14]} Rxb6 {[%clk 00:07:03]} {[%emt 00:00:09]} 53. Qf8 {[%clk 00:07:28]}
{[%emt 00:02:16]} Rb7 {[%clk 00:07:01]} {[%emt 00:00:32]} 54. Qf4 {[%clk
00:06:55]} {[%emt 00:01:03]} Qc6 {[%clk 00:04:20]} {[%emt 00:03:11]} 55. c4
{[%clk 00:05:26]} {[%emt 00:01:59]} Rc7 {[%clk 00:04:40]} {[%emt 00:00:10]} 56.
Rd1 {[%clk 00:04:57]} {[%emt 00:00:58]} Re7 {[%clk 00:03:00]} {[%emt 00:02:10]}
57. Rd8 {[%clk 00:03:50]} {[%emt 00:01:38]} Qe4 {[%clk 00:01:00]} {[%emt
00:02:30]} 58. Qxe4 {[%clk 00:02:22]} {[%emt 00:01:58]} Rxe4 {[%clk 00:01:28]}
{[%emt 00:00:02]} 59. Rd7+ {[%clk 00:02:46]} {[%emt 00:00:06]} Kh6 {[%clk
00:01:46]} {[%emt 00:00:11]} 60. c5 {[%clk 00:02:48]} {[%emt 00:00:28]} Re1+
{[%clk 00:01:10]} {[%emt 00:01:06]} 61. Kh2 {[%clk 00:03:14]} {[%emt 00:00:04]}
h4 {[%clk 00:01:29]} {[%emt 00:00:12]} 62. c6 {[%clk 00:01:55]} {[%emt
00:01:49]} Rc1 {[%clk 00:01:49]} {[%emt 00:00:10]} 63. Rc7 {[%clk 00:01:56]}
{[%emt 00:00:28]} g5 {[%clk 00:01:50]} {[%emt 00:00:29]} 64. Rc8 {[%clk
00:01:44]} {[%emt 00:00:43]} Kg7 {[%clk 00:02:13]} {[%emt 00:00:07]} 65. g4
{[%clk 00:01:26]} {[%emt 00:00:47]} hxg3+ {[%clk 00:00:35]} {[%emt 00:02:09]}
66. Kxg3 {[%clk 00:01:50]} {[%emt 00:00:05]} Rc3+ {[%clk 00:00:35]} {[%emt
00:00:31]} 67. Kg4 {[%clk 00:02:09]} {[%emt 00:00:11]} Kg6 {[%clk 00:00:49]}
{[%emt 00:00:15]} 68. c7 {[%clk 00:01:58]} {[%emt 00:00:41]} Rc4+ {[%clk
00:01:16]} {[%emt 00:00:04]} 69. Kf3 {[%clk 00:02:16]} {[%emt 00:00:11]} Kg7
{[%clk 00:01:42]} {[%emt 00:00:04]} 70. Ke3 {[%clk 00:02:35]} {[%emt 00:00:11]}
Rc1 {[%clk 00:01:24]} {[%emt 00:00:49]} 71. Ke4 {[%clk 00:02:51]} {[%emt
00:00:14]} Rc2 {[%clk 00:01:22]} {[%emt 00:00:31]} 72. Kf5 {[%clk 00:03:01]}
{[%emt 00:00:20]} Rc5+ {[%clk 00:01:49]} {[%emt 00:00:03]} 73. Kg4 {[%clk
00:02:39]} {[%emt 00:00:52]} Kh7 {[%clk 00:02:16]} {[%emt 00:00:04]} 74. Kf3
{[%clk 00:02:14]} {[%emt 00:00:54]} Kg7 {[%clk 00:02:37]} {[%emt 00:00:09]} 75.
Ke4 {[%clk 00:02:28]} {[%emt 00:00:16]} Rc1 {[%clk 00:02:57]} {[%emt 00:00:11]}
76. Kd5 {[%clk 00:02:36]} {[%emt 00:00:21]} Rd1+ {[%clk 00:02:38]} {[%emt
00:00:50]} 77. Ke6 {[%clk 00:02:48]} {[%emt 00:00:17]} Rc1 {[%clk 00:02:49]}
{[%emt 00:00:19]} 78. Ke5 {[%clk 00:02:52]} {[%emt 00:00:26]} Rc2 {[%clk
00:03:06]} {[%emt 00:00:13]} 79. Kf5 {[%clk 00:02:42]} {[%emt 00:00:40]} Rc5+
{[%clk 00:03:32]} {[%emt 00:00:05]} 80. Kg4 {[%clk 00:03:08]} {[%emt 00:00:04]}
Kh7 {[%clk 00:03:54]} {[%emt 00:00:08]} 81. Kh5 {[%clk 00:02:16]} {[%emt
00:01:22]} Kg7 {[%clk 00:04:15]} {[%emt 00:00:09]} 82. Ra8 {[%clk 00:01:34]}
{[%emt 00:01:12]} Rxc7 {[%clk 00:04:40]} {[%emt 00:00:05]} 83. Ra5 {[%clk
00:01:16]} {[%emt 00:00:48]} Kh7 {[%clk 00:04:37]} {[%emt 00:00:33]} 84. Rxg5
{[%clk 00:01:31]} {[%emt 00:00:14]} Rg7 {[%clk 00:05:02]} {[%emt 00:00:05]} 85.
Ra5 {[%clk 00:01:54]} {[%emt 00:00:08]} Rb7 {[%clk 00:05:15]} {[%emt 00:00:17]}
86. h4 {[%clk 00:02:16]} {[%emt 00:00:07]} Rc7 {[%clk 00:04:39]} {[%emt
00:01:06]} 87. Kg5 {[%clk 00:02:14]} {[%emt 00:00:32]} Rb7 {[%clk 00:04:54]}
{[%emt 00:00:16]} 88. h5 {[%clk 00:01:56]} {[%emt 00:00:48]} Rc7 {[%clk
00:04:28]} {[%emt 00:00:56]} 89. h6 {[%clk 00:01:22]} {[%emt 00:01:04]} Rb7
{[%clk 00:04:51]} {[%emt 00:00:07]} 90. Ra8 {[%clk 00:01:04]} {[%emt 00:00:47]}
Rb5+ {[%clk 00:05:03]} {[%emt 00:00:19]} 91. Kf6 {[%clk 00:01:29]} {[%emt
00:00:05]} Rb6+ {[%clk 00:05:30]} {[%emt 00:00:03]} 92. Kf7 {[%clk 00:01:48]}
{[%emt 00:00:10]} Kxh6 {[%clk 00:05:45]} {[%emt 00:00:15]} 1/2-1/2